[Event "RUS-chTW Premier 2019"]
[Site "Sochi"]
[Date "2019.05.08"]
[Round "7.10"]
[White "Dordzhieva, Dinara"]
[Black "Protopopova, Anastasiya"]
[Result "1-0"]
[ECO "D70"]
[WhiteElo "2280"]
[BlackElo "2249"]
[Annotator "NA RC"]
[PlyCount "79"]
[EventDate "2019.04.30"]
[EventType "team-tourn"]
[EventCountry "RUS"]
[SourceTitle "playchess.com"]
[Source "ChessBase"]
[SourceQuality "1"]
[TimeControl "40/5400+30:1800+30"]

1. d4 {[%emt 0:00:00]} d5 {[%emt 0:00:00]} 2. c4 {[%emt 0:00:00]} c6 {[%emt 0:00:06]} 3. Nf3 {[%emt 0:00:00]} Nf6 {[%emt 0:00:04]} 4. Nbd2 {[%emt 0:00:12]} g6 {[%emt 0:03:21]} 5. g3 {[%emt 0:02:48]} Bg7 {[%emt 0:00:11]} 6. Bg2 {[%emt 0:00:06]} O-O {[%emt 0:00:09]} 7. O-O {[%emt 0:00:03]} dxc4 {[%emt 0:08:08]} 8. Nxc4 {[%emt 0:00:28]} Be6 {[%emt 0:00:17]} 9. Qc2 {[%emt 0:01:53]} Na6 {[%emt 0:04:21]} 10. b3 {[%emt 0:14:05]} Bf5 {[%emt 0:10:59]} 11. Qd1 {[%emt 0:01:30]} c5 {[%emt 0:05:43]} 12. Bb2 {[%emt 0:04:27]} Nd5 {[%emt 0:08:21]} 13. Nfe5 {[%emt 0:15:06]} f6 {[%emt 0:12:52]} 14. e4 {[%emt 0:09:28]} fxe5 {[%emt 0:01:09]} 15. dxe5 {[%emt 0:00:09]} Nf4 {[%emt 0:03:59]} 16. exf5 {[%emt 0:07:32]} Nxg2 {[%emt 0:01:47]} 17. fxg6 {[%emt 0:01:37]} b5 {[%emt 0:11:17]} 18. Na3 {[%emt 0:01:55]} Nf4 {[%emt 0:06:55]} 19. gxh7+ {[%emt 0:00:58]} Kxh7 {[%emt 0:00:30]} 20. gxf4 {[%emt 0:01:18]} Qe8 {[%emt 0:00:17]} 21. Qf3 {[%emt 0:01:22]} e6 {[%emt 0:03:10]} 22. Qd3+ {[%emt 0:07:01]} Rf5 {[%emt 0:02:31]} 23. Nxb5 {[%emt 0:04:43]} Nb4 {[%emt 0:01:53]} 24. Qh3+ {[%emt 0:05:44]} Rh5 {[%emt 0:00:34]} 25. Qf3 {[%emt 0:00:03]} Qg6+ {[%emt 0:04:35]} 26. Kh1 {[%emt 0:02:43]} Rh8 {[%emt 0:04:20]} 27. Qg2 {[%emt 0:06:32]} Qh6 {[%emt 0:01:44]} 28. Rad1 {[%emt 0:06:23]} Nd5 {[%emt 0:00:24]} 29. Rxd5 {[%emt 0:00:42]} exd5 {[%emt 0:00:12]} 30. Rg1 {[%emt 0:00:28]} d4 {[%emt 0:02:58]} 31. Bc1 {[%emt 0:03:01]} Kg8 {[%emt 0:00:36]} 32. Qd5+ {[%emt 0:00:34]} Kh7 {[%emt 0:00:00]} 33. Rg2 {[%emt 0:00:55]} Rxe5 {[%emt 0:02:17]} 34. fxe5 {[%emt 0:00:53]} Qxc1+ {[%emt 0:00:05]} 35. Rg1 {[%emt 0:00:02]} Qf4 {[%emt 0:00:19]} 36. Nd6 {[%emt 0:01:22]} Rf8 {[%emt 0:01:09]} 37. e6 {[%emt 0:01:34]} Be5 {[%emt 0:00:38]} 38. Qb7+ {[%emt 0:00:36]} Kh8 {[%emt 0:00:28]} 39. Qg2 {[%emt 0:00:03]} Qh6 {[%emt 0:00:40]} 40. Nf7+ {[%emt 0:00:00]} 1-0

[Event "RUS-chTW Premier 2019"]
[Site "Sochi"]
[Date "2019.05.08"]
[Round "7.11"]
[White "Lysenko, Margarita"]
[Black "Maltsevskaya, Aleksandra"]
[Result "0-1"]
[ECO "E68"]
[WhiteElo "2211"]
[BlackElo "2299"]
[Annotator "NA RC"]
[PlyCount "78"]
[EventDate "2019.04.30"]
[EventType "team-tourn"]
[EventCountry "RUS"]
[SourceTitle "playchess.com"]
[Source "ChessBase"]
[SourceQuality "1"]
[TimeControl "40/5400+30:1800+30"]

1. d4 {[%emt 0:00:00]} Nf6 {[%emt 0:00:00]} 2. Nf3 {[%emt 0:00:00]} g6 {[%emt 0:00:00]} 3. g3 {[%emt 0:00:03]} Bg7 {[%emt 0:00:22]} 4. Bg2 {[%emt 0:00:24]} O-O {[%emt 0:00:09]} 5. O-O {[%emt 0:00:23]} d6 {[%emt 0:00:08]} 6. c4 {[%emt 0:00:13]} Nbd7 {[%emt 0:00:34]} 7. Nc3 {[%emt 0:00:17]} e5 {[%emt 0:00:33]} 8. e4 {[%emt 0:00:10]} exd4 {[%emt 0:02:31]} 9. Nxd4 {[%emt 0:02:33]} Re8 {[%emt 0:00:05]} 10. h3 {[%emt 0:05:31]} a6 {[%emt 0:05:09]} 11. Be3 {[%emt 0:03:08]} Nc5 {[%emt 0:01:24]} 12. Qc2 {[%emt 0:01:15]} Bd7 {[%emt 0:00:33]} 13. Rfe1 {[%emt 0:10:18]} Rb8 {[%emt 0:01:22]} 14. Rad1 {[%emt 0:11:07]} Qc8 {[%emt 0:06:38]} 15. Kh2 {[%emt 0:01:36]} b5 {[%emt 0:00:22]} 16. b4 {[%emt 0:15:02]} Na4 {[%emt 0:07:19]} 17. Nxa4 {[%emt 0:06:33]} bxa4 {[%emt 0:00:06]} 18. Rb1 {[%emt 0:09:51]} c5 {[%emt 0:12:56]} 19. bxc5 {[%emt 0:00:47]} dxc5 {[%emt 0:00:05]} 20. Ne2 {[%emt 0:02:31]} Rxb1 {[%emt 0:05:46]} 21. Rxb1 {[%emt 0:02:46]} h5 {[%emt 0:00:26]} 22. Nc3 {[%emt 0:09:39]} h4 {[%emt 0:01:41]} 23. gxh4 {[%emt 0:09:33]} Nh5 {[%emt 0:03:28]} 24. Nd5 {[%emt 0:01:13]} Be6 {[%emt 0:01:48]} 25. Qxa4 {[%emt 0:03:18]} Be5+ {[%emt 0:01:22]} 26. f4 {[%emt 0:03:35]} Bxd5 {[%emt 0:00:06]} 27. fxe5 {[%emt 0:00:13]} Bc6 {[%emt 0:00:04]} 28. Qd1 {[%emt 0:00:59]} Qa8 {[%emt 0:15:41]} 29. Qg4 {[%emt 0:00:58]} Rxe5 {[%emt 0:00:40]} 30. Rb6 {[%emt 0:00:31]} Bxe4 {[%emt 0:03:05]} 31. Bxe4 {[%emt 0:00:22]} Rxe4 {[%emt 0:00:17]} 32. Qf3 {[%emt 0:00:27]} Qe8 {[%emt 0:01:31]} 33. Bxc5 {[%emt 0:00:36]} Qe5+ {[%emt 0:01:23]} 34. Kg2 {[%emt 0:00:31]} Nf4+ {[%emt 0:04:56]} 35. Kh1 {[%emt 0:00:19]} Re1+ {[%emt 0:00:05]} 36. Bg1 {[%emt 0:00:32]} Qd4 {[%emt 0:00:15]} 37. Rb8+ {[%emt 0:00:16]} Kh7 {[%emt 0:00:05]} 38. Qg4 {[%emt 0:00:43]} Qe4+ {[%emt 0:00:18]} 39. Kh2 {[%emt 0:00:17]} Re2+ {[%emt 0:00:06]} 0-1

[Event "RUS-chTW Premier 2019"]
[Site "Sochi"]
[Date "2019.05.08"]
[Round "7.12"]
[White "Diakonova, Ekaterina"]
[Black "Geller, Anastasiya"]
[Result "1-0"]
[ECO "B18"]
[WhiteElo "2211"]
[BlackElo "2187"]
[Annotator "NA RC"]
[PlyCount "67"]
[EventDate "2019.04.30"]
[EventType "team-tourn"]
[EventCountry "RUS"]
[SourceTitle "playchess.com"]
[Source "ChessBase"]
[SourceQuality "1"]
[TimeControl "40/5400+30:1800+30"]

1. e4 {[%emt 0:00:00]} c6 {[%emt 0:00:00]} 2. d4 {[%emt 0:00:00]} d5 {[%emt 0:00:00]} 3. Nc3 {[%emt 0:00:23]} dxe4 {[%emt 0:00:00]} 4. Nxe4 {[%emt 0:00:03]} Bf5 {[%emt 0:00:02]} 5. Ng3 {[%emt 0:00:04]} Bg6 {[%emt 0:00:06]} 6. Nf3 {[%emt 0:01:09]} Nd7 {[%emt 0:00:24]} 7. Bd3 {[%emt 0:01:43]} e6 {[%emt 0:04:51]} 8. O-O {[%emt 0:00:46]} Ngf6 {[%emt 0:05:28]} 9. b3 {[%emt 0:00:36]} Bxd3 {[%emt 0:04:46]} 10. Qxd3 {[%emt 0:00:06]} c5 {[%emt 0:00:13]} 11. Bb2 {[%emt 0:08:42]} cxd4 {[%emt 0:07:38]} 12. Nxd4 {[%emt 0:00:06]} Be7 {[%emt 0:02:48]} 13. c4 {[%emt 0:02:34]} O-O {[%emt 0:03:17]} 14. a3 {[%emt 0:03:07]} Nc5 {[%emt 0:03:33]} 15. Qc2 {[%emt 0:02:50]} a6 {[%emt 0:01:34]} 16. b4 {[%emt 0:02:30]} Ncd7 {[%emt 0:00:06]} 17. Rfd1 {[%emt 0:06:08]} Qc7 {[%emt 0:00:27]} 18. c5 {[%emt 0:11:30]} Rfe8 {[%emt 0:01:44]} 19. Rac1 {[%emt 0:03:02]} Bf8 {[%emt 0:05:31]} 20. Qe2 {[%emt 0:08:53]} Qf4 {[%emt 0:07:12]} 21. Nf3 {[%emt 0:07:47]} Nd5 {[%emt 0:11:53]} 22. Ne5 {[%emt 0:02:29]} Nxe5 {[%emt 0:02:40]} 23. Bxe5 {[%emt 0:00:05]} Qg5 {[%emt 0:02:39]} 24. Rc4 {[%emt 0:00:42]} f6 {[%emt 0:00:29]} 25. Bb2 {[%emt 0:03:04]} f5 {[%emt 0:07:15]} 26. Qf3 {[%emt 0:11:09]} Rad8 {[%emt 0:02:38]} 27. Be5 {[%emt 0:02:33]} Ne7 {[%emt 0:05:06]} 28. Rxd8 {[%emt 0:10:08]} Rxd8 {[%emt 0:00:05]} 29. Qxb7 {[%emt 0:00:02]} Rd1+ {[%emt 0:01:13]} 30. Nf1 {[%emt 0:00:01]} Nd5 {[%emt 0:00:43]} 31. Qc6 {[%emt 0:04:53]} Ne3 {[%emt 0:01:20]} 32. Qxe6+ {[%emt 0:00:15]} Kh8 {[%emt 0:00:47]} 33. Bxg7+ {[%emt 0:00:02]} Qxg7 {[%emt 0:03:25]} 34. Qxe3 {[%emt 0:02:38]} 1-0

[Event "RUS-chTW Premier 2019"]
[Site "Sochi"]
[Date "2019.05.08"]
[Round "7.13"]
[White "Shuvalova, Polina"]
[Black "Grigorieva, Yulia"]
[Result "1/2-1/2"]
[ECO "C96"]
[WhiteElo "2439"]
[BlackElo "2128"]
[Annotator "RC"]
[PlyCount "112"]
[EventDate "2019.04.30"]
[EventType "team-tourn"]
[EventCountry "RUS"]
[SourceTitle "playchess.com"]
[Source "ChessBase"]
[SourceQuality "1"]
[TimeControl "40/5400+30:1800+30"]

1. e4 {[%emt 0:00:00]} e5 {[%emt 0:00:00]} 2. Nf3 {[%emt 0:00:00]} Nc6 {[%emt 0:00:00]} 3. Bb5 {[%emt 0:00:00]} a6 {[%emt 0:00:00]} 4. Ba4 {[%emt 0:00:00]} Nf6 {[%emt 0:00:00]} 5. O-O {[%emt 0:00:00]} Be7 {[%emt 0:00:17]} 6. Re1 {[%emt 0:00:01]} b5 {[%emt 0:00:21]} 7. Bb3 {[%emt 0:00:04]} O-O {[%emt 0:01:17]} 8. h3 {[%emt 0:00:25]} d6 {[%emt 0:00:29]} 9. c3 {[%emt 0:00:03]} Na5 {[%emt 0:00:11]} 10. Bc2 {[%emt 0:00:05]} c5 {[%emt 0:00:16]} 11. d4 {[%emt 0:00:04]} Nd7 {[%emt 0:00:19]} 12. b3 {[%emt 0:01:40]} exd4 {[%emt 0:04:20]} 13. cxd4 {[%emt 0:00:04]} Nc6 {[%emt 0:01:03]} 14. Bb2 {[%emt 0:01:42]} cxd4 {[%emt 0:02:50]} 15. Nxd4 {[%emt 0:00:30]} Nxd4 {[%emt 0:01:26]} 16. Bxd4 {[%emt 0:00:09]} Bf6 {[%emt 0:01:44]} 17. Nc3 {[%emt 0:00:56]} Bb7 {[%emt 0:05:02]} 18. Nd5 {[%emt 0:00:34]} Bxd5 {[%emt 0:08:22]} 19. exd5 {[%emt 0:01:25]} Bxd4 {[%emt 0:03:46]} 20. Qxd4 {[%emt 0:00:05]} Qf6 {[%emt 0:01:04]} 21. Qg4 {[%emt 0:05:30]} Nb6 {[%emt 0:05:08]} 22. a4 {[%emt 0:05:41]} Rac8 {[%emt 0:13:00]} 23. Be4 {[%emt 0:01:31]} Rc5 {[%emt 0:06:15]} 24. b4 {[%emt 0:10:27]} Rc7 {[%emt 0:09:37]} 25. axb5 {[%emt 0:00:40]} axb5 {[%emt 0:03:38]} 26. Bd3 {[%emt 0:07:39]} g6 {[%emt 0:04:45]} 27. Bxb5 {[%emt 0:04:56]} Nxd5 {[%emt 0:01:41]} 28. Be2 {[%emt 0:04:47]} h5 {[%emt 0:12:11]} 29. Qg3 {[%emt 0:07:43]} Nxb4 {[%emt 0:01:29]} 30. Rad1 {[%emt 0:01:04]} Nc2 {[%emt 0:03:59]} 31. Rf1 {[%emt 0:04:17]} Nd4 {[%emt 0:00:49]} 32. Bd3 {[%emt 0:03:25]} Re8 {[%emt 0:01:32]} 33. Kh1 {[%emt 0:05:39]} Rc3 {[%emt 0:01:48]} 34. Qh2 {[%emt 0:03:00]} h4 {[%emt 0:05:30]} 35. Qg1 {[%emt 0:10:39]} Nf3 {[%emt 0:00:55]} 36. gxf3 {[%emt 0:00:09]} Qxf3+ {[%emt 0:00:06]} 37. Qg2 {[%emt 0:01:19]} Rxd3 {[%emt 0:00:08]} 38. Qxf3 {[%emt 0:00:27]} Rxf3 {[%emt 0:00:04]} 39. Kg2 {[%emt 0:00:03]} Rf6 {[%emt 0:00:33]} 40. Rd4 {[%emt 0:00:00]} g5 {[%emt 0:00:00]} 41. Rg4 {[%emt 0:11:27]} Rg6 {[%emt 0:12:43]} 42. f4 {[%emt 0:00:47]} Re2+ {[%emt 0:01:25]} 43. Kf3 {[%emt 0:01:19]} Rh2 {[%emt 0:01:29]} 44. Rxg5 {[%emt 0:01:28]} Rxh3+ {[%emt 0:03:07]} 45. Kg4 {[%emt 0:00:11]} Rg3+ {[%emt 0:02:45]} 46. Kxh4 {[%emt 0:00:09]} R3xg5 {[%emt 0:00:49]} 47. fxg5 {[%emt 0:00:03]} d5 {[%emt 0:00:39]} 48. Rd1 {[%emt 0:05:13]} Rd6 {[%emt 0:00:05]} 49. Rd4 {[%emt 0:00:19]} Kf8 {[%emt 0:03:25]} 50. Kg4 {[%emt 0:00:04]} Ke7 {[%emt 0:00:19]} 51. Kf5 {[%emt 0:00:05]} Kd7 {[%emt 0:00:33]} 52. Ke5 {[%emt 0:00:25]} Kc6 {[%emt 0:00:17]} 53. Rf4 {[%emt 0:00:58]} Rd7 {[%emt 0:01:28]} 54. Kd4 {[%emt 0:00:02]} Kd6 {[%emt 0:01:56]} 55. Rf5 {[%emt 0:00:13]} Kc6 {[%emt 0:01:00]} 56. Rf6+ {[%emt 0:00:11]} Kc7 {[%emt 0:00:17]} 1/2-1/2

[Event "RUS-chTW Premier 2019"]
[Site "Sochi"]
[Date "2019.05.08"]
[Round "7.15"]
[White "Bivol, Alina"]
[Black "Absalyamova, Karina"]
[Result "1-0"]
[ECO "C10"]
[WhiteElo "2393"]
[BlackElo "2014"]
[Annotator "NA RC"]
[PlyCount "128"]
[EventDate "2019.04.30"]
[EventType "team-tourn"]
[EventCountry "RUS"]
[SourceTitle "playchess.com"]
[Source "ChessBase"]
[SourceQuality "1"]
[TimeControl "40/5400+30:1800+30"]

1. e4 {[%emt 0:00:00]} e6 {[%emt 0:00:00]} 2. d4 {[%emt 0:00:00]} d5 {[%emt 0:00:00]} 3. Nd2 {[%emt 0:00:00]} dxe4 {[%emt 0:00:00]} 4. Nxe4 {[%emt 0:00:01]} Nd7 {[%emt 0:00:00]} 5. g3 {[%emt 0:00:59]} Ngf6 {[%emt 0:00:34]} 6. Nxf6+ {[%emt 0:00:13]} Nxf6 {[%emt 0:00:05]} 7. Bg2 {[%emt 0:00:05]} Be7 {[%emt 0:00:21]} 8. Nf3 {[%emt 0:00:11]} O-O {[%emt 0:00:22]} 9. O-O {[%emt 0:00:07]} c5 {[%emt 0:02:25]} 10. dxc5 {[%emt 0:00:07]} Bxc5 {[%emt 0:00:39]} 11. Qe2 {[%emt 0:03:11] C10: French with 3 Nc3: Unusual Black 3rd moves and 3...dxe4} (11. Ne5 Qc7 12. Qe2 Nd7 13. Nd3 Bd6 14. Be3 Ne5 15. Rfd1 Nc4 16. Bc1 e5 17. b3 Nb6 18. c4 Bf5 {1-0 (50) Safarli,E (2644)-Abasov,N (2479) Nakhchivan 2013}) 11... Qb6 {[%emt 0:01:36]} 12. Ne5 {[%emt 0:04:02]} h6 {[%emt 0:08:28]} 13. Rd1 $146 {[%emt 0:02:56]} ({Predecessor:} 13. c3 a5 14. Rd1 Rd8 15. Be3 Bxe3 16. Qxe3 Qc7 17. Rxd8+ Qxd8 18. Nc4 Ra6 {1-0 (40) Celik,E (1686)-Akdagli,G (1804) Manavgat 2016}) 13... Rd8 {[%emt 0:01:42]} 14. Rxd8+ {[%emt 0:03:17]} Qxd8 {[%emt 0:00:05]} 15. c3 {[%emt 0:00:27]} Qc7 {[%emt 0:07:29]} 16. Bf4 {[%emt 0:05:53]} Nd5 {[%emt 0:03:02]} 17. Bxd5 {[%emt 0:03:26]} exd5 {[%emt 0:00:05]} 18. Qb5 {[%emt 0:10:02]} Be6 {[%emt 0:13:29]} 19. Nd3 {[%emt 0:07:33]} Bd6 {[%emt 0:00:46]} 20. Bxd6 {[%emt 0:00:05]} Qxd6 {[%emt 0:00:05]} 21. Qxb7 {[%emt 0:00:36]} Re8 {[%emt 0:03:43]} 22. Re1 {[%emt 0:00:59]} d4 {[%emt 0:02:39]} 23. Nf4 {[%emt 0:31:55]} dxc3 {[%emt 0:07:02]} 24. bxc3 {[%emt 0:03:44]} Qd2 {[%emt 0:04:53]} 25. Qb1 {[%emt 0:00:07]} Qxc3 {[%emt 0:03:08]} 26. Nxe6 {[%emt 0:00:07]} fxe6 {[%emt 0:01:10]} 27. Qe4 {[%emt 0:00:21]} Qd2 {[%emt 0:03:13]} 28. Re2 {[%emt 0:02:48]} Qd7 {[%emt 0:00:21]} 29. h4 {[%emt 0:00:37]} Qb5 {[%emt 0:01:54]} 30. Kh2 {[%emt 0:00:50]} Kh8 {[%emt 0:01:58]} 31. a4 {[%emt 0:00:07]} Qb6 {[%emt 0:00:50]} 32. Qc4 {[%emt 0:04:39]} Rf8 {[%emt 0:01:04]} 33. Qa2 {[%emt 0:00:22]} Rf6 {[%emt 0:01:40]} 34. Rb2 {[%emt 0:00:16]} Qc5 {[%emt 0:03:38]} 35. Rc2 {[%emt 0:01:01]} Qd5 {[%emt 0:01:24]} 36. Qb2 {[%emt 0:02:01]} Rf8 {[%emt 0:01:42]} 37. Rc7 {[%emt 0:00:17]} e5 {[%emt 0:00:51]} 38. f4 {[%emt 0:04:32]} Qf3 {[%emt 0:16:22]} 39. fxe5 {[%emt 0:04:09]} Qe3 {[%emt 0:03:18]} 40. Rc2 {[%emt 0:00:00]} Qe4 {[%emt 0:00:00]} 41. Re2 {[%emt 0:02:32]} Qxa4 {[%emt 0:07:50]} 42. e6 {[%emt 0:00:12]} Qc6 {[%emt 0:05:15]} 43. e7 {[%emt 0:01:11]} Re8 {[%emt 0:00:06]} 44. Qe5 {[%emt 0:00:16]} Qd7 {[%emt 0:01:17]} 45. Qf4 {[%emt 0:01:53]} a5 {[%emt 0:01:08]} 46. g4 {[%emt 0:00:42]} Kg8 {[%emt 0:02:33]} 47. Qc4+ {[%emt 0:00:00]} Kh8 {[%emt 0:00:18]} 48. Qe4 {[%emt 0:01:37]} Qd6+ {[%emt 0:03:57]} 49. Kh3 {[%emt 0:00:25]} Qf6 {[%emt 0:00:13]} 50. Kg3 {[%emt 0:02:23]} a4 {[%emt 0:04:09]} 51. Qb4 {[%emt 0:01:53]} Qf7 {[%emt 0:03:05]} 52. g5 {[%emt 0:01:36]} Qg6 {[%emt 0:06:00]} 53. Qc5 {[%emt 0:05:35]} h5 {[%emt 0:01:05] [#]} 54. Re3 $2 {[%emt 0:01:23]} (54. Rd2 $1 $18 {[%cal Rd2d8]} a3 55. Rd8 (55. Qxa3 Qb6 $14)) 54... Qb1 {[%emt 0:02:38]} 55. Kf4 {[%emt 0:03:50]} Qb8+ {[%emt 0:03:01] [#]} 56. Kf5 $1 {[%emt 0:00:35]} Qb1+ {[%emt 0:01:10]} 57. Ke6 {[%emt 0:00:35]} Kg8 {[%emt 0:00:47]} 58. Kd7 {[%emt 0:02:19]} Qg6 {[%emt 0:01:33]} 59. Qd5+ {[%emt 0:00:16]} Kh7 {[%emt 0:00:12]} 60. Re6 {[%emt 0:00:07]} Qc2 {[%emt 0:00:27]} 61. Rh6+ {[%emt 0:00:37]} gxh6 {[%emt 0:00:16]} 62. Qf7+ {[%emt 0:00:09]} Kh8 {[%emt 0:00:04]} 63. Qxe8+ {[%emt 0:00:07]} Kh7 {[%emt 0:00:05]} 64. Qf7+ {[%emt 0:00:05]} Kh8 1-0

[Event "RUS-chTW Premier 2019"]
[Site "Sochi"]
[Date "2019.05.09"]
[Round "8.1"]
[White "Mukhina, Jana"]
[Black "Pogonina, Natalija"]
[Result "0-1"]
[ECO "C84"]
[WhiteElo "2098"]
[BlackElo "2453"]
[Annotator "ChessBase"]
[PlyCount "84"]
[EventDate "2019.05.01"]
[EventType "team-tourn"]
[EventCountry "RUS"]
[SourceTitle "playchess.com"]
[Source "ChessBase"]
[SourceQuality "1"]
[TimeControl "40/5400+30:1800+30"]

1. e4 {[%emt 0:00:00]} e5 {[%emt 0:00:00]} 2. Nf3 {[%emt 0:00:00]} Nc6 {[%emt 0:00:00]} 3. Bb5 {[%emt 0:00:00]} a6 {[%emt 0:00:00]} 4. Ba4 {[%emt 0:00:02]} Nf6 {[%emt 0:00:00]} 5. O-O {[%emt 0:00:23]} Be7 {[%emt 0:01:32]} 6. d3 {[%emt 0:00:39]} b5 {[%emt 0:04:25]} 7. Bb3 {[%emt 0:00:01]} d6 {[%emt 0:00:07]} 8. a4 {[%emt 0:00:19]} Bd7 {[%emt 0:00:55]} 9. c3 {[%emt 0:15:38]} O-O {[%emt 0:01:14]} 10. Re1 {[%emt 0:00:05]} Na5 {[%emt 0:02:35]} 11. Bc2 {[%emt 0:00:40]} c5 {[%emt 0:00:21]} 12. Nbd2 {[%emt 0:01:04]} Nc6 {[%emt 0:11:28]} 13. Nf1 {[%emt 0:01:48]} b4 {[%emt 0:02:34]} 14. Ne3 {[%emt 0:08:42]} Re8 {[%emt 0:08:35]} 15. d4 {[%emt 0:07:50]} bxc3 {[%emt 0:12:35]} 16. bxc3 {[%emt 0:01:05]} cxd4 {[%emt 0:00:07]} 17. cxd4 {[%emt 0:00:13]} exd4 {[%emt 0:00:08]} 18. Nxd4 {[%emt 0:01:53]} Bf8 {[%emt 0:02:20]} 19. f3 {[%emt 0:12:27]} d5 {[%emt 0:21:06]} 20. exd5 {[%emt 0:02:53]} Nxd5 {[%emt 0:01:09]} 21. Nxc6 {[%emt 0:04:05]} Bxc6 {[%emt 0:02:08]} 22. Qd3 {[%emt 0:05:19]} Qh4 {[%emt 0:04:52]} 23. g3 {[%emt 0:20:50]} Qh5 {[%emt 0:01:29]} 24. Qf5 {[%emt 0:04:59]} Qxf5 {[%emt 0:04:57]} 25. Bxf5 {[%emt 0:00:02]} Bb4 {[%emt 0:04:04]} 26. Re2 {[%emt 0:00:09]} Nxe3 {[%emt 0:02:12]} 27. Bxe3 {[%emt 0:01:22]} Rxe3 {[%emt 0:06:50]} 28. Rxe3 {[%emt 0:00:09]} Bc5 {[%emt 0:00:03]} 29. Kf2 {[%emt 0:02:27]} Re8 {[%emt 0:00:05]} 30. Raa3 {[%emt 0:01:48]} Rxe3 {[%emt 0:00:36]} 31. Rxe3 {[%emt 0:00:06]} Bxa4 {[%emt 0:00:08]} 32. Ke2 {[%emt 0:00:23]} Bxe3 {[%emt 0:00:08]} 33. Kxe3 {[%emt 0:00:21]} Bc6 {[%emt 0:01:40]} 34. f4 {[%emt 0:00:41]} h5 {[%emt 0:02:31]} 35. Bd3 {[%emt 0:02:32]} a5 {[%emt 0:00:05]} 36. f5 {[%emt 0:00:58]} Kf8 {[%emt 0:01:03]} 37. h4 {[%emt 0:04:37]} Ke7 {[%emt 0:02:12]} 38. Be2 {[%emt 0:01:47]} Bd7 39. Bxh5 {[%emt 0:00:00]} a4 {[%emt 0:01:31]} 40. Kd4 Bxf5 {[%emt 0:00:00]} 41. Kc3 {[%emt 0:05:59]} Bd7 {[%emt 0:03:47]} 42. Kb4 {[%emt 0:01:46]} f5 {[%emt 0:01:16]} 0-1

[Event "RUS-chTW Premier 2019"]
[Site "Sochi"]
[Date "2019.05.09"]
[Round "8.2"]
[White "Girya, Olga"]
[Black "Mironenko, Galina"]
[Result "1-0"]
[ECO "E15"]
[WhiteElo "2449"]
[BlackElo "1901"]
[Annotator "NA"]
[PlyCount "63"]
[EventDate "2019.05.01"]
[EventType "team-tourn"]
[EventCountry "RUS"]
[SourceTitle "playchess.com"]
[Source "ChessBase"]
[SourceQuality "1"]
[TimeControl "40/5400+30:1800+30"]

1. d4 {[%emt 0:00:00]} Nf6 {[%emt 0:00:00]} 2. c4 {[%emt 0:00:00]} e6 {[%emt 0:00:00]} 3. Nf3 {[%emt 0:00:00]} b6 {[%emt 0:00:00]} 4. g3 {[%emt 0:00:00]} Ba6 {[%emt 0:00:00]} 5. b3 {[%emt 0:00:00]} Bb7 {[%emt 0:01:38]} 6. Bg2 {[%emt 0:00:00] E15: Queen's Indian: 4 g3 sidelines, 4 g3 Ba6 and 4 g3 Bb7 early deviations} Be7 {[%emt 0:00:07]} 7. O-O {[%emt 0:00:32]} O-O {[%emt 0:00:11]} 8. Bb2 {[%emt 0:01:32]} Na6 {[%emt 0:01:27]} 9. Nc3 {[%emt 0:03:49]} d5 {[%emt 0:00:24]} 10. cxd5 $146 {[%emt 0:01:39]} ({Predecessor:} 10. e3 c5 11. Qe2 dxc4 {½-½ (11) Granda Zuniga,J (2621)-Lafuente,P (2454) Cali 2007}) 10... exd5 {[%emt 0:00:10]} 11. Rc1 {[%emt 0:04:03]} Qc8 {[%emt 0:02:36]} 12. Ne5 {[%emt 0:02:08]} Qe6 {[%emt 0:02:57]} 13. e3 {[%emt 0:09:00]} Ne4 {[%emt 0:06:08]} 14. Ne2 {[%emt 0:10:33]} Rfd8 {[%emt 0:13:15]} 15. Nf4 {[%emt 0:08:38]} Qd6 {[%emt 0:00:33]} 16. Qh5 {[%emt 0:05:24]} g6 {[%emt 0:07:52]} 17. Qe2 {[%emt 0:00:21]} Nb4 {[%emt 0:17:08]} 18. a3 {[%emt 0:02:36]} Ba6 {[%emt 0:03:14]} 19. Qd1 {[%emt 0:06:59]} Bxf1 {[%emt 0:05:02]} 20. Bxf1 {[%emt 0:00:04]} f6 {[%emt 0:01:43]} 21. axb4 {[%emt 0:00:25]} fxe5 {[%emt 0:01:42]} 22. dxe5 {[%emt 0:00:05]} Qd7 {[%emt 0:06:39]} 23. f3 {[%emt 0:01:39]} Bxb4 {[%emt 0:09:20]} 24. fxe4 {[%emt 0:01:01]} Bc5 {[%emt 0:05:48]} 25. Nxd5 {[%emt 0:01:56]} Qg7 $18 {[%emt 0:03:04]} 26. Qf3 {[%emt 0:02:05]} Rf8 {[%emt 0:01:17]} 27. Nf6+ {[%emt 0:00:10]} Kh8 {[%emt 0:00:05]} 28. Rc2 {[%emt 0:05:32]} Rac8 {[%emt 0:05:33]} 29. e6 {[%emt 0:04:42]} Be7 {[%emt 0:00:35]} 30. Rf2 {[%emt 0:00:12]} c5 {[%emt 0:01:03]} 31. Nd5 {[%emt 0:02:10]} Qxb2 {[%emt 0:00:45]} 32. Qxf8+ {[%emt 0:00:12]} 1-0

[Event "RUS-chTW Premier 2019"]
[Site "Sochi"]
[Date "2019.05.09"]
[Round "8.3"]
[White "Filippova, Darya"]
[Black "Guseva, Marina"]
[Result "0-1"]
[ECO "D10"]
[WhiteElo "2070"]
[BlackElo "2402"]
[Annotator "ChessBase"]
[PlyCount "44"]
[EventDate "2019.05.01"]
[EventType "team-tourn"]
[EventCountry "RUS"]
[SourceTitle "playchess.com"]
[Source "ChessBase"]
[SourceQuality "1"]
[TimeControl "40/5400+30:1800+30"]

1. d4 {[%emt 0:00:00]} d5 {[%emt 0:00:00]} 2. c4 {[%emt 0:00:00]} c6 {[%emt 0:00:00]} 3. Nc3 {[%emt 0:00:00]} Nf6 {[%emt 0:00:00]} 4. e3 {[%emt 0:00:06]} a6 {[%emt 0:00:00]} 5. cxd5 {[%emt 0:00:53]} cxd5 {[%emt 0:00:00]} 6. Nf3 {[%emt 0:00:23]} Nc6 {[%emt 0:00:07]} 7. g3 {[%emt 0:01:00]} Bg4 {[%emt 0:00:39]} 8. Bg2 {[%emt 0:01:48]} e6 {[%emt 0:00:06]} 9. O-O {[%emt 0:04:24]} Bd6 {[%emt 0:01:30]} 10. h3 {[%emt 0:05:13]} Bh5 {[%emt 0:00:11]} 11. Ne2 {[%emt 0:00:42]} Bg6 {[%emt 0:05:01]} 12. Nf4 {[%emt 0:01:30]} Be4 {[%emt 0:00:06]} 13. b3 {[%emt 0:05:25]} O-O {[%emt 0:08:41]} 14. Bb2 {[%emt 0:00:42]} Rc8 {[%emt 0:02:26]} 15. Ne5 {[%emt 0:08:32]} Nb4 {[%emt 0:07:22]} 16. Nfd3 {[%emt 0:03:43]} Qa5 {[%emt 0:12:29]} 17. Bxe4 {[%emt 0:11:39]} Nxe4 {[%emt 0:03:54]} 18. Nd7 {[%emt 0:06:23]} Nxd3 {[%emt 0:08:55]} 19. Qxd3 {[%emt 0:00:39]} Rfd8 {[%emt 0:00:18]} 20. Ne5 {[%emt 0:01:26]} Ba3 {[%emt 0:10:33]} 21. Bxa3 {[%emt 0:04:25]} Qxa3 {[%emt 0:00:04]} 22. Nc4 {[%emt 0:02:54]} Rxc4 {[%emt 0:00:18]} 0-1